fUSD/lending_fUSD_20260605
["ID","MTS","AMOUNT","RATE_DAILY","PERIOD"]
[424163139,1780621843000,-177.96219227,0.000151,2]
[424163124,1780621843000,-166.66,0.0001481,2]
[424163136,1780621843000,-663.83414893,0.00015097,2]
[424163137,1780621843000,-4282.02272652,0.000151,2]
[424163135,1780621843000,-867.74143018,0.00015097,2]
[424163140,1780621843000,-344.5905267,0.000151,2]
[424163142,1780621843000,-152.0,0.00015191,2]
[424163141,1780621843000,-1083.75,0.00015152,2]
[424163158,1780621843000,-283.12656751,0.00015196,2]
[424163144,1780621843000,-451.73330809,0.00015196,2]
[424163156,1780621843000,-500.0,0.00015196,2]
[424163154,1780621843000,-500.0,0.00015196,2]
[424163134,1780621843000,-281.6393173,0.00015097,2]
[424163222,1780621844000,-339.52492449,0.00015196,2]
[424163227,1780621844000,-500.0,0.00015196,2]
[424163218,1780621844000,-500.0,0.00015196,2]
[424163220,1780621844000,-160.47507551,0.00015196,2]
[424163216,1780621844000,-500.0,0.00015196,2]
[424163207,1780621844000,-500.0,0.00015196,2]
[424163225,1780621844000,-500.0,0.00015196,2]
[424163209,1780621844000,-448.34323481,0.00015196,2]
[424163212,1780621844000,-51.65676519,0.00015196,2]
[424163205,1780621844000,-457.46726887,0.00015196,2]
[424163203,1780621844000,-500.0,0.00015196,2]
[424163231,1780621844000,-500.0,0.00015196,2]
[424163214,1780621844000,-500.0,0.00015196,2]
[424163233,1780621844000,-592.49114287,0.00015196,2]
[424163229,1780621844000,-500.0,0.00015196,2]
[424163238,1780621844000,-500.0,0.00015196,2]
[424163235,1780621844000,-500.0,0.00015196,2]
[424163332,1780621844000,-152.0,0.0001382,2]
[424163334,1780621844000,-4203.71472952,0.00015197,2]
[424163330,1780621844000,-154.56295114,0.00013242,2]
[424163337,1780621844000,-2263.23946417,0.00015197,2]
[424163255,1780621844000,-4952.26606527,0.00015197,2]
[424163258,1780621844000,-470.3606827,0.00015197,2]
[424163251,1780621844000,-504.10854741,0.00015196,2]
[424163246,1780621844000,-500.0,0.00015196,2]
[424163248,1780621844000,-500.0,0.00015196,2]
[424163244,1780621844000,-500.0,0.00015196,2]
[424163242,1780621844000,-500.0,0.00015196,2]
[424163240,1780621844000,-500.0,0.00015196,2]
[424163253,1780621844000,-500.0,0.00015196,2]
[424163737,1780621847000,-1562896.89625451,0.00015197,2]
[424163754,1780621847000,-9022.76330226,0.00015197,2]
[424163747,1780621847000,-346.85900152,0.00015197,2]
[424163745,1780621847000,-19418.54280808,0.00015197,2]
[424163740,1780621847000,-884.05639917,0.00015197,2]
[424163757,1780621847000,-300.68891187,0.00015197,2]
[424163743,1780621847000,-3579.6954734,0.00015197,2]
[424164789,1780621861000,-823.45,0.00015197,2]
[424164790,1780621861000,-2651.32048602,0.00015197,2]
[424164788,1780621861000,152.0,0.00030091,120]
[424164793,1780621862000,-14848.79757395,0.00015197,2]
[424164792,1780621862000,-2216.07317504,0.00015197,2]
[424164791,1780621862000,-257.36645259,0.00015197,2]
[424164794,1780621879000,-4000.0,0.00015097,2]
[424164795,1780621914000,74.34185384,0.0001301,2]
[424164796,1780621929000,-174.54654616,0.0001301,2]
[424164797,1780621983000,-1155.75363352,0.00013326,2]
[424164799,1780622146000,152.0,0.00030096,120]
[424164801,1780622263000,-160.4618201,0.00013141,2]
[424164802,1780622263000,-500.0,0.00013141,2]
[424164800,1780622263000,-500.0,0.00013141,2]
[424164803,1780622263000,-813.04219169,0.00013141,2]
[424164804,1780622263000,-500.0,0.00013141,2]
[424164805,1780622263000,-813.04219169,0.00013141,2]
[424164806,1780622263000,-500.0,0.00013141,2]
[424164808,1780622263000,-500.0,0.00013141,2]
[424164814,1780622263000,-500.0,0.00013141,2]
[424164809,1780622263000,-500.0,0.00013141,2]
[424164810,1780622263000,-813.04219169,0.00013141,2]
[424164811,1780622263000,-500.0,0.00013141,2]
[424164813,1780622263000,-459.08073603,0.00013141,2]
[424164812,1780622263000,-813.04219169,0.00013141,2]
[424164816,1780622263000,-210.83593802,0.00013141,2]
[424164815,1780622263000,-813.04219169,0.00013141,2]
[424164817,1780622263000,-813.04219169,0.00013141,2]
[424164807,1780622263000,-500.0,0.00013141,2]
[424164830,1780622264000,-813.04219169,0.00013141,2]
[424164833,1780622264000,-813.04219169,0.00013141,2]
[424164832,1780622264000,-813.04219169,0.00013141,2]
[424164836,1780622264000,-813.04219169,0.00013141,2]
[424164837,1780622264000,-813.04219169,0.00013141,2]
[424164818,1780622264000,-500.0,0.00013141,2]
[424164831,1780622264000,-813.04219169,0.00013141,2]
[424164835,1780622264000,-813.04219169,0.00013141,2]
[424164828,1780622264000,-813.04219169,0.00013141,2]
[424164826,1780622264000,-500.0,0.00013141,2]
[424164829,1780622264000,-813.04219169,0.00013141,2]
[424164827,1780622264000,-813.04219169,0.00013141,2]
[424164824,1780622264000,-813.04219169,0.00013141,2]
[424164823,1780622264000,-500.0,0.00013141,2]
[424164821,1780622264000,-813.04219169,0.00013141,2]
[424164822,1780622264000,-813.04219169,0.00013141,2]
[424164839,1780622264000,-813.04219169,0.00013141,2]
[424164819,1780622264000,-813.04219169,0.00013141,2]
[424164825,1780622264000,-813.04219169,0.00013141,2]
[424164838,1780622264000,-813.04219169,0.00013141,2]
[424164820,1780622264000,-500.0,0.00013141,2]
[424164841,1780622264000,-813.04219169,0.00013141,2]
[424164840,1780622264000,-813.04219169,0.00013141,2]
[424164860,1780622264000,-813.04219169,0.00013141,2]
[424164858,1780622264000,-813.04219169,0.00013141,2]
[424164856,1780622264000,-813.04219169,0.00013141,2]
[424164859,1780622264000,-813.04219169,0.00013141,2]
[424164857,1780622264000,-813.04219169,0.00013141,2]
[424164855,1780622264000,-813.04219169,0.00013141,2]
[424164854,1780622264000,-813.04219169,0.00013141,2]
[424164853,1780622264000,-813.04219169,0.00013141,2]
[424164851,1780622264000,-813.04219169,0.00013141,2]
[424164834,1780622264000,-813.04219169,0.00013141,2]
[424164850,1780622264000,-813.04219169,0.00013141,2]
[424164842,1780622264000,-813.04219169,0.00013141,2]
[424164843,1780622264000,-813.04219169,0.00013141,2]
[424164844,1780622264000,-813.04219169,0.00013141,2]
[424164845,1780622264000,-813.04219169,0.00013141,2]
[424164852,1780622264000,-813.04219169,0.00013141,2]
[424164847,1780622264000,-813.04219169,0.00013141,2]
[424164848,1780622264000,-813.04219169,0.00013141,2]
[424164849,1780622264000,-813.04219169,0.00013141,2]
[424164846,1780622264000,-813.04219169,0.00013141,2]
[424164875,1780622265000,-178.7464888,0.00013239,2]
[424164874,1780622265000,-185.34819323,0.00013239,2]
[424164873,1780622265000,-500.0,0.00013239,2]
[424164871,1780622265000,-500.0,0.00013239,2]
[424164870,1780622265000,-199.71082135,0.00013226,2]
[424164869,1780622265000,-229.7270178,0.00013226,2]
[424164867,1780622265000,-5423.32143114,0.00013225,2]
[424164878,1780622265000,-500.0,0.00013239,2]
[424164866,1780622265000,-7887.0,0.00013205,2]
[424164864,1780622265000,-33250.5141,0.00013142,2]
[424164865,1780622265000,-3574.26374262,0.00013142,2]
[424164863,1780622265000,-434.0484,0.00013142,2]
[424164862,1780622265000,-813.04219169,0.00013141,2]
[424164861,1780622265000,-813.04219169,0.00013141,2]
[424164868,1780622265000,-250.0,0.00013226,2]
[424164877,1780622265000,-500.0,0.00013239,2]
[424164872,1780622265000,-319.41851033,0.00013239,2]
[424164879,1780622265000,-152.6271821,0.00013239,2]
[424164880,1780622265000,-500.0,0.00013239,2]
[424164895,1780622265000,-269908.29569947,0.00013242,2]
[424164894,1780622265000,-150.0,0.00013241,2]
[424164893,1780622265000,-150.0,0.00013241,2]
[424164892,1780622265000,-150.0,0.0001324,2]
[424164890,1780622265000,-300.0,0.0001324,2]
[424164891,1780622265000,-1200.0,0.0001324,2]
[424164889,1780622265000,-500.0,0.00013239,2]
[424164876,1780622265000,-547.57270371,0.00013239,2]
[424164887,1780622265000,-500.0,0.00013239,2]
[424164886,1780622265000,-500.0,0.00013239,2]
[424164885,1780622265000,-500.0,0.00013239,2]
[424164882,1780622265000,-466.04420587,0.00013239,2]
[424164884,1780622265000,-500.0,0.00013239,2]
[424164888,1780622265000,-500.0,0.00013239,2]
[424164883,1780622265000,-500.0,0.00013239,2]
[424164881,1780622265000,-500.0,0.00013239,2]
[424164896,1780622295000,-1458.1475713,0.00013141,2]
[424164898,1780622295000,-883.7048574,0.00013141,2]
[424164897,1780622295000,-1458.1475713,0.00013141,2]
[424164899,1780622315000,237.20393856,0.0001349,7]
[424164900,1780622316000,355.80590788,0.00014283,7]
[424164901,1780622349000,-2500.0,0.00013142,2]
[424164902,1780622402000,-6278.82574516,0.00013142,2]
[424164903,1780622422000,-14848.79757395,0.00013142,2]
[424164904,1780622440000,-12122.89078089,0.00013142,2]
[424164905,1780622492000,-2923.42577841,0.00013126,2]
[424164906,1780622508000,-2923.42577841,0.00013126,2]
[424164907,1780622524000,-519.01748861,0.00013126,2]
[424164909,1780622575000,-150.0,7.888e-05,2]
[424164910,1780622591000,-150.0,7.888e-05,2]
[424164917,1780622607000,-95.83691049,7.888e-05,2]
[424164918,1780622671000,182.01,0.00028767,120]
[424164920,1780622940000,2000.0,0.00030135,120]
[424164921,1780622979000,-150.0,9.519e-05,2]
[424164922,1780622997000,-50.0,9.519e-05,2]
[424164923,1780623007000,1734.79,0.00030137,120]
[424164924,1780623014000,160.0,0.000301,120]
[424164984,1780623032000,-500.0,0.00011976,2]
[424164961,1780623032000,-150.0,0.0001191,2]
[424164962,1780623032000,-150.0,0.0001191,2]
[424164965,1780623032000,-217.43671141,0.0001191,2]
[424164963,1780623032000,-150.0,0.0001191,2]
[424164964,1780623032000,-150.0,0.0001191,2]
[424164969,1780623032000,-168.974852,0.00011936,2]
[424164967,1780623032000,-217.43671141,0.00011923,2]
[424164966,1780623032000,-168.974852,0.00011923,2]
[424164970,1780623032000,-217.43671141,0.00011936,2]
[424164968,1780623032000,-150.0,0.00011936,2]
[424164972,1780623032000,-168.974852,0.0001195,2]
[424164971,1780623032000,-150.0,0.00011938,2]
[424164973,1780623032000,-217.43671141,0.0001195,2]
[424164976,1780623032000,-270.7688836,0.00011952,2]
[424164977,1780623032000,-150.0,0.00011955,2]
[424164975,1780623032000,-150.0,0.00011952,2]
[424164979,1780623032000,-217.43671141,0.00011963,2]
[424164978,1780623032000,-168.974852,0.00011963,2]
[424164980,1780623032000,-150.0,0.00011966,2]
[424164982,1780623032000,-168.974852,0.00011976,2]
[424164981,1780623032000,-150.0,0.00011976,2]
[424164985,1780623032000,-168.974852,0.0001199,2]
[424164986,1780623032000,-217.43671141,0.0001199,2]
[424164989,1780623032000,-150.0,0.00011995,2]
[424164988,1780623032000,-150.0,0.00011995,2]
[424164960,1780623032000,-150.0,0.0001191,2]
[424164974,1780623032000,-150.0,0.00011952,2]
[424164958,1780623032000,-150.0,0.0001191,2]
[424164952,1780623032000,-150.0,0.0001191,2]
[424164987,1780623032000,-150.0,0.00011994,2]
[424164929,1780623032000,-250.0,9.532e-05,2]
[424164932,1780623032000,-179.24,9.816e-05,2]
[424164930,1780623032000,-250.0,9.544e-05,2]
[424164934,1780623032000,-38.44770475,9.858e-05,2]
[424164935,1780623032000,-177.28594764,9.858e-05,2]
[424164936,1780623032000,-419.25563211,9.899e-05,2]
[424164937,1780623032000,-283.81543205,9.899e-05,2]
[424164938,1780623032000,-250.0,0.00010471,2]
[424164939,1780623032000,-398.97396013,0.00010485,2]
[424164940,1780623032000,-263.0,0.00010699,2]
[424164941,1780623032000,-850.30144506,0.00010699,2]
[424164956,1780623032000,-150.0,0.0001191,2]
[424164942,1780623032000,-341.72310018,0.00010699,2]
[424164943,1780623032000,-7.97545476,0.00010699,2]
[424164946,1780623032000,-402.21,0.00010991,2]
[424164945,1780623032000,-1274.25,0.00010963,2]
[424164948,1780623032000,-216.75,0.00011329,2]
[424164947,1780623032000,-216.75,0.00011052,2]
[424164950,1780623032000,-1680.0,0.00011769,2]
[424164949,1780623032000,-216.75,0.00011605,2]
[424164951,1780623032000,-216.75,0.00011881,2]
[424164953,1780623032000,-150.0,0.0001191,2]
[424164954,1780623032000,-168.974852,0.0001191,2]
[424164955,1780623032000,-150.0,0.0001191,2]
[424164957,1780623032000,-150.0,0.0001191,2]
[424164944,1780623032000,-15497.27587637,0.000107,2]
[424164983,1780623032000,-217.43671141,0.00011976,2]
[424164931,1780623032000,-267.51604311,9.799e-05,2]
[424164990,1780623032000,-150.0,0.00012001,2]
[424165023,1780623032000,-150.0,0.00012123,2]
[424165027,1780623032000,-150.0,0.00012135,2]
[424165026,1780623032000,-217.43671141,0.00012123,2]
[424165024,1780623032000,-150.0,0.00012123,2]
[424165025,1780623032000,-168.974852,0.00012123,2]
[424165028,1780623032000,-168.974852,0.00012137,2]
[424165029,1780623032000,-217.43671141,0.00012137,2]
[424165031,1780623032000,-168.974852,0.0001215,2]
[424165030,1780623032000,-150.0,0.00012138,2]
[424165032,1780623032000,-217.43671141,0.0001215,2]
[424165034,1780623032000,-150.0,0.00012163,2]
[424165036,1780623032000,-217.43671141,0.00012164,2]
[424165021,1780623032000,-168.974852,0.0001211,2]
[424165040,1780623032000,-168.974852,0.00012177,2]
[424165039,1780623032000,-150.0,0.00012174,2]
[424165037,1780623032000,-150.0,0.00012166,2]
[424165033,1780623032000,-216.75,0.00012158,2]
[424165038,1780623032000,-150.0,0.00012166,2]
[424165044,1780623032000,-217.43671141,0.0001219,2]
[424165045,1780623032000,-150.0,0.00012191,2]
[424165042,1780623032000,-150.0,0.00012183,2]
[424165043,1780623032000,-168.974852,0.0001219,2]
[424165041,1780623032000,-217.43671141,0.00012177,2]
[424165046,1780623032000,-168.974852,0.00012204,2]
[424165048,1780623032000,-150.0,0.00012208,2]
[424165047,1780623032000,-217.43671141,0.00012204,2]
[424165035,1780623032000,-168.974852,0.00012164,2]
[424165022,1780623032000,-217.43671141,0.0001211,2]
[424164991,1780623032000,-168.974852,0.00012003,2]
[424165020,1780623032000,-150.0,0.00012108,2]
[424165019,1780623032000,-150.0,0.00012107,2]
[424164993,1780623032000,-217.43671141,0.00012017,2]
[424164994,1780623032000,-168.974852,0.00012017,2]
[424164992,1780623032000,-217.43671141,0.00012003,2]
[424164997,1780623032000,-168.974852,0.0001203,2]
[424164995,1780623032000,-150.0,0.00012022,2]
[424164996,1780623032000,-217.43671141,0.0001203,2]
[424164999,1780623032000,-150.0,0.00012038,2]
[424165001,1780623032000,-168.974852,0.00012043,2]
[424165002,1780623032000,-217.43671141,0.00012043,2]
[424165000,1780623032000,-150.0,0.00012042,2]
[424165005,1780623032000,-168.974852,0.00012057,2]
[424165004,1780623032000,-150.0,0.0001205,2]
[424164998,1780623032000,-150.0,0.00012038,2]
[424165006,1780623032000,-217.43671141,0.00012057,2]
[424165003,1780623032000,-150.0,0.00012046,2]
[424165018,1780623032000,-217.43671141,0.00012097,2]
[424165016,1780623032000,-150.0,0.00012092,2]
[424165015,1780623032000,-150.0,0.00012084,2]
[424165013,1780623032000,-217.43671141,0.00012083,2]
[424165012,1780623032000,-150.0,0.0001208,2]
[424165014,1780623032000,-168.974852,0.00012083,2]
[424165017,1780623032000,-168.974852,0.00012097,2]
[424165009,1780623032000,-150.0,0.00012075,2]
[424165011,1780623032000,-150.0,0.0001208,2]
[424165008,1780623032000,-217.43671141,0.0001207,2]
[424165007,1780623032000,-168.974852,0.0001207,2]
[424165010,1780623032000,-150.0,0.00012079,2]
[424165091,1780623033000,-5445.17234777,0.0001235,2]
[424165097,1780623033000,-217.43671141,0.00012364,2]
[424165088,1780623033000,-150.0,0.00012336,2]
[424165089,1780623033000,-168.974852,0.00012337,2]
[424165087,1780623033000,-150.0,0.00012336,2]
[424165080,1780623033000,-150.0,0.00012307,2]
[424165086,1780623033000,-150.0,0.00012332,2]
[424165084,1780623033000,-168.974852,0.00012324,2]
[424165085,1780623033000,-217.43671141,0.00012324,2]
[424165082,1780623033000,-217.43671141,0.00012311,2]
[424165092,1780623033000,-168.974852,0.00012351,2]
[424165090,1780623033000,-217.43671141,0.00012337,2]
[424165094,1780623033000,-217.43671141,0.00012351,2]
[424165109,1780623033000,-150.0,0.00012406,2]
[424165096,1780623033000,-168.974852,0.00012364,2]
[424165093,1780623033000,-150.0,0.00012351,2]
[424165101,1780623033000,-217.43671141,0.00012377,2]
[424165098,1780623033000,-150.0,0.00012366,2]
[424165103,1780623033000,-150.0,0.00012379,2]
[424165099,1780623033000,-150.0,0.00012373,2]
[424165100,1780623033000,-168.974852,0.00012377,2]
[424165102,1780623033000,-150.0,0.00012379,2]
[424165104,1780623033000,-150.0,0.00012388,2]
[424165105,1780623033000,-168.974852,0.00012391,2]
[424165106,1780623033000,-217.43671141,0.00012391,2]
[424165108,1780623033000,-217.43671141,0.00012404,2]
[424165081,1780623033000,-168.974852,0.00012311,2]
[424165107,1780623033000,-168.974852,0.00012404,2]
[424165095,1780623033000,-150.0,0.0001236,2]
[424165083,1780623033000,-150.0,0.0001232,2]
[424165066,1780623033000,-168.974852,0.00012257,2]
[424165072,1780623033000,-150.0,0.00012276,2]
[424165049,1780623033000,-150.0,0.00012208,2]
[424165053,1780623033000,-150.0,0.00012229,2]
[424165110,1780623033000,-150.0,0.00012412,2]
[424165051,1780623033000,-217.43671141,0.00012217,2]
[424165052,1780623033000,-150.0,0.00012219,2]
[424165055,1780623033000,-217.43671141,0.0001223,2]
[424165057,1780623033000,-150.0,0.0001224,2]
[424165058,1780623033000,-150.0,0.0001224,2]
[424165056,1780623033000,-200.0,0.00012231,2]
[424165054,1780623033000,-168.974852,0.0001223,2]
[424165061,1780623033000,-150.0,0.00012247,2]
[424165059,1780623033000,-168.974852,0.00012244,2]
[424165060,1780623033000,-217.43671141,0.00012244,2]
[424165079,1780623033000,-150.0,0.00012304,2]
[424165062,1780623033000,-505.63651196,0.0001225,2]
[424165065,1780623033000,-150.0,0.00012251,2]
[424165064,1780623033000,-150.0,0.00012251,2]
[424165067,1780623033000,-217.43671141,0.00012257,2]
[424165070,1780623033000,-217.43671141,0.0001227,2]
[424165069,1780623033000,-168.974852,0.0001227,2]
[424165068,1780623033000,-1000.0,0.00012257,2]
[424165071,1780623033000,-150.0,0.00012275,2]
[424165073,1780623033000,-168.974852,0.00012284,2]
[424165074,1780623033000,-217.43671141,0.00012284,2]
[424165075,1780623033000,-150.0,0.00012294,2]
[424165077,1780623033000,-168.974852,0.00012297,2]
[424165076,1780623033000,-150.0,0.00012294,2]
[424165078,1780623033000,-217.43671141,0.00012297,2]
[424165063,1780623033000,-5445.17234779,0.00012251,2]
[424165050,1780623033000,-168.974852,0.00012217,2]
[424165113,1780623033000,-217.43671141,0.00012418,2]
[424165117,1780623033000,-217.43671141,0.00012431,2]
[424165147,1780623033000,-2500.0,0.00012532,2]
[424165144,1780623033000,-217.43671141,0.00012524,2]
[424165148,1780623033000,-168.974852,0.00012538,2]
[424165150,1780623033000,-5445.17234777,0.00012548,2]
[424165152,1780623033000,-150.0,0.0001255,2]
[424165151,1780623033000,-150.0,0.00012548,2]
[424165153,1780623033000,-150.0,0.0001255,2]
[424165149,1780623033000,-217.43671141,0.00012538,2]
[424165154,1780623033000,-168.974852,0.00012551,2]
[424165157,1780623033000,-150.0,0.00012557,2]
[424165155,1780623033000,-217.43671141,0.00012551,2]
[424165158,1780623033000,-168.974852,0.00012565,2]
[424165156,1780623033000,-150.0,0.00012557,2]
[424165146,1780623033000,-150.0,0.00012529,2]
[424165159,1780623033000,-217.43671141,0.00012565,2]
[424165167,1780623033000,-150.0,0.00012585,2]
[424165163,1780623033000,-250.0,0.00012578,2]
[424165160,1780623033000,-150.0,0.00012571,2]
[424165166,1780623033000,-150.0,0.00012585,2]
[424165164,1780623033000,-168.974852,0.00012578,2]
[424165161,1780623033000,-150.0,0.00012571,2]
[424165162,1780623033000,-150.0,0.00012571,2]
[424165168,1780623033000,-168.974852,0.00012591,2]
[424165169,1780623033000,-217.43671141,0.00012591,2]
[424165170,1780623033000,-150.0,0.00012593,2]
[424165171,1780623033000,-150.0,0.00012593,2]
[424165114,1780623033000,-150.0,0.00012422,2]
[424165173,1780623033000,-168.974852,0.00012605,2]
[424165165,1780623033000,-217.43671141,0.00012578,2]
[424165145,1780623033000,-150.0,0.00012529,2]
[424165172,1780623033000,-150.0,0.00012594,2]
[424165142,1780623033000,-217.43671141,0.00012511,2]
[424165143,1780623033000,-168.974852,0.00012524,2]
[424165111,1780623033000,-150.0,0.00012416,2]
[424165115,1780623033000,-150.0,0.00012422,2]
[424165112,1780623033000,-168.974852,0.00012418,2]
[424165119,1780623033000,-168.974852,0.00012444,2]
[424165118,1780623033000,-150.0,0.00012439,2]
[424165121,1780623033000,-150.0,0.00012445,2]
[424165120,1780623033000,-217.43671141,0.00012444,2]
[424165122,1780623033000,-5445.17234777,0.00012449,2]
[424165124,1780623033000,-168.974852,0.00012458,2]
[424165123,1780623033000,-150.0,0.00012457,2]
[424165126,1780623033000,-150.0,0.00012465,2]
[424165125,1780623033000,-217.43671141,0.00012458,2]
[424165128,1780623033000,-168.974852,0.00012471,2]
[424165116,1780623033000,-168.974852,0.00012431,2]
[424165129,1780623033000,-217.43671141,0.00012471,2]
[424165141,1780623033000,-168.974852,0.00012511,2]
[424165139,1780623033000,-150.0,0.00012507,2]
[424165136,1780623033000,-150.0,0.00012501,2]
[424165138,1780623033000,-150.0,0.00012505,2]
[424165127,1780623033000,-150.0,0.00012465,2]
[424165135,1780623033000,-150.0,0.00012501,2]
[424165140,1780623033000,-150.0,0.00012507,2]
[424165134,1780623033000,-217.43671141,0.00012498,2]
[424165133,1780623033000,-168.974852,0.00012498,2]
[424165130,1780623033000,-150.0,0.00012473,2]
[424165132,1780623033000,-217.43671141,0.00012484,2]
[424165131,1780623033000,-168.974852,0.00012484,2]
[424165137,1780623033000,-150.0,0.00012503,2]
[424165216,1780623034000,-150.0,0.00012737,2]
[424165215,1780623034000,-150.0,0.00012731,2]
[424165212,1780623034000,-217.43671141,0.00012725,2]
[424165214,1780623034000,-150.0,0.00012726,2]
[424165205,1780623034000,-217.43671141,0.00012698,2]
[424165211,1780623034000,-168.974852,0.00012725,2]
[424165209,1780623034000,-150.0,0.00012721,2]
[424165208,1780623034000,-168.974852,0.00012712,2]
[424165206,1780623034000,-150.0,0.00012704,2]
[424165207,1780623034000,-217.43671141,0.00012712,2]
[424165210,1780623034000,-150.0,0.00012721,2]
[424165213,1780623034000,-150.0,0.00012726,2]
[424165220,1780623034000,-168.974852,0.00012752,2]
[424165223,1780623034000,-150.0,0.00012754,2]
[424165219,1780623034000,-5445.17234777,0.00012746,2]
[424165221,1780623034000,-217.43671141,0.00012752,2]
[424165222,1780623034000,-150.0,0.00012754,2]
[424165217,1780623034000,-168.974852,0.00012738,2]
[424165224,1780623034000,-150.0,0.00012763,2]
[424165226,1780623034000,-168.974852,0.00012765,2]
[424165225,1780623034000,-150.0,0.00012763,2]
[424165228,1780623034000,-150.0,0.0001277,2]
[424165227,1780623034000,-217.43671141,0.00012765,2]
[424165229,1780623034000,-150.0,0.00012777,2]
[424165204,1780623034000,-168.974852,0.00012698,2]
[424165218,1780623034000,-217.43671141,0.00012738,2]
[424165201,1780623034000,-150.0,0.00012685,2]
[424165189,1780623034000,-5445.17234777,0.00012647,2]
[424165200,1780623034000,-217.43671141,0.00012685,2]
[424165230,1780623034000,-168.974852,0.00012778,2]
[424165174,1780623034000,-217.43671141,0.00012605,2]
[424165175,1780623034000,-150.0,0.00012613,2]
[424165180,1780623034000,-217.43671141,0.00012631,2]
[424165178,1780623034000,-217.43671141,0.00012618,2]
[424165177,1780623034000,-168.974852,0.00012618,2]
[424165176,1780623034000,-150.0,0.00012613,2]
[424165179,1780623034000,-168.974852,0.00012631,2]
[424165181,1780623034000,-150.0,0.00012635,2]
[424165185,1780623034000,-150.0,0.00012642,2]
[424165183,1780623034000,-150.0,0.00012637,2]
[424165182,1780623034000,-150.0,0.00012635,2]
[424165202,1780623034000,-150.0,0.00012698,2]
[424165184,1780623034000,-150.0,0.0001264,2]
[424165186,1780623034000,-150.0,0.00012642,2]
[424165188,1780623034000,-217.43671141,0.00012645,2]
[424165191,1780623034000,-217.43671141,0.00012658,2]
[424165192,1780623034000,-150.0,0.0001267,2]
[424165190,1780623034000,-168.974852,0.00012658,2]
[424165193,1780623034000,-150.0,0.0001267,2]
[424165197,1780623034000,-150.0,0.00012678,2]
[424165194,1780623034000,-168.974852,0.00012671,2]
[424165196,1780623034000,-150.0,0.00012678,2]
[424165195,1780623034000,-217.43671141,0.00012671,2]
[424165199,1780623034000,-168.974852,0.00012685,2]
[424165198,1780623034000,-4000.0,0.00012678,2]
[424165187,1780623034000,-168.974852,0.00012645,2]
[424165232,1780623034000,-150.0,0.00012782,2]
[424165203,1780623034000,-150.0,0.00012698,2]
[424165233,1780623034000,-150.0,0.00012782,2]
[424165264,1780623034000,-150.0,0.00012891,2]
[424165265,1780623034000,-150.0,0.00012891,2]
[424165266,1780623034000,-150.0,0.00012895,2]
[424165267,1780623034000,-150.0,0.00012895,2]
[424165273,1780623034000,-217.43671141,0.00012912,2]
[424165274,1780623034000,-150.0,0.00012923,2]
[424165270,1780623034000,-150.0,0.00012902,2]
[424165268,1780623034000,-168.974852,0.00012899,2]
[424165271,1780623034000,-150.0,0.00012902,2]
[424165269,1780623034000,-217.43671141,0.00012899,2]
[424165272,1780623034000,-168.974852,0.00012912,2]
[424165277,1780623034000,-217.43671141,0.00012925,2]
[424165263,1780623034000,-217.43671141,0.00012885,2]
[424165278,1780623034000,-150.0,0.00012934,2]
[424165280,1780623034000,-168.974852,0.00012939,2]
[424165279,1780623034000,-150.0,0.00012934,2]
[424165283,1780623034000,-4794.4710579,0.00012944,2]
[424165281,1780623034000,-217.43671141,0.00012939,2]
[424165282,1780623034000,-650.70128987,0.00012944,2]
[424165284,1780623034000,-150.0,0.00012951,2]